bitfinex/quotes_ETHUSD_20251217
["timestamp","ask_amount","ask_price","bid_price","bid_amount"]
[1765994326313,0.002,2854.8,2854.1,0.37201667]
[1765994326510,0.002,2854.8,2854.1,3.87574255]
[1765994327030,0.002,2854.8,2854.1,7.37947402]
[1765994327212,0.002,2854.8,2854.3,3.50348596]
[1765994327515,0.002,2854.8,2854.2,0.7379474]
[1765994327721,0.002,2854.8,2854.1,3.87564182]
[1765994327928,0.002,2854.8,2854.2,3.50359593]
[1765994328906,0.561,2854.8,2853.9,0.01948588]
[1765994329114,0.561,2854.8,2853.9,3.52345192]
[1765994329413,4.06394181,2854.8,2853.9,3.52345192]
[1765994329731,0.40649418,2854.7,2853.9,3.52345192]
[1765994331419,0.40649418,2854.7,2853.9,7.02742893]
[1765994331635,0.40649418,2854.7,2853.9,3.52345192]
[1765994332779,0.46438023,2854.6,2853.9,0.002]
[1765994332984,5.391279,2854.4,2853.9,0.002]
[1765994333183,0.43739174,2854.5,2853.9,0.002]
[1765994333184,2.272166,2854.2,2853.9,0.002]
[1765994333593,5.86514471,2854.2,2853.9,0.002]
[1765994333798,7.00721742,2854.2,2853.9,0.002]
[1765994333989,0.46438023,2854.1,2853.9,0.002]
[1765994334189,0.74715976,2854.0,2853.9,0.002]
[1765994334495,0.46438023,2854.2,2853.9,0.002]
[1765994334496,0.405504,2854.1,2853.9,0.002]
[1765994334690,2.1723958,2854.1,2853.3,0.002]
[1765994334897,12.376537,2853.7,2853.3,0.002]
[1765994335100,0.56,2853.6,2853.3,0.002]
[1765994335723,0.46438023,2853.5,2853.3,0.002]
[1765994335974,0.91726103,2853.5,2853.3,0.002]
[1765994337823,0.91726103,2853.5,2852.7,0.002]
[1765994337824,3.50459101,2853.4,2852.7,0.002]
[1765994338023,0.91726103,2853.5,2852.7,0.002]
[1765994338321,0.46438023,2853.5,2852.7,0.002]
[1765994339828,7.00918202,2853.4,2852.7,0.002]
[1765994340543,0.46438023,2853.1,2852.7,0.002]
[1765994340755,6.754886,2852.9,2852.7,0.002]
[1765994342042,5.051886,2852.9,2852.7,0.002]
[1765994342233,0.91170226,2852.8,2852.7,0.002]
[1765994342563,11.270872,2852.9,2852.7,0.002]
[1765994343233,2.437012,2852.9,2852.7,0.002]
[1765994343955,1.02438023,2853.0,2852.7,0.002]
[1765994344160,4.06508236,2853.0,2852.7,0.002]
[1765994344366,1.02438023,2853.0,2852.7,0.002]
[1765994344653,1.52375797,2853.0,2852.7,0.002]
[1765994344958,1.05937774,2853.0,2852.7,0.002]
[1765994345156,0.56,2853.4,2852.7,0.002]
[1765994345447,0.56,2853.4,2852.7,0.01948588]
[1765994345953,0.56,2853.4,2852.7,3.52491009]
[1765994346120,1.02438023,2853.4,2852.7,0.01948588]
[1765994346446,0.46438023,2853.2,2852.7,0.002]
[1765994346643,0.39690941,2853.1,2852.7,0.002]
[1765994346867,0.561,2853.0,2852.7,0.002]
[1765994347967,1.02538023,2853.0,2852.7,0.002]
[1765994348334,4.53048817,2853.0,2852.7,0.002]
[1765994348535,4.06610794,2853.0,2852.7,0.002]
[1765994348735,0.44630174,2852.9,2852.7,0.002]
[1765994350144,1.02538023,2853.0,2852.7,0.002]
[1765994350346,4.06608527,2853.0,2852.7,0.002]
[1765994351673,4.06608704,2853.0,2852.7,0.002]
[1765994351871,0.561,2853.0,2852.7,0.002]
[1765994352073,4.06608832,2853.0,2852.7,0.002]
[1765994352378,0.40660883,2852.9,2852.7,0.002]
[1765994352952,1.02538023,2853.0,2852.7,0.002]
[1765994353139,0.561,2853.0,2852.7,0.002]
[1765994353567,0.46438023,2853.7,2852.7,0.002]
[1765994353766,12.487748,2853.4,2852.7,0.002]
[1765994354174,0.46438023,2853.2,2852.7,0.002]
[1765994354369,0.95790941,2853.1,2852.7,0.002]
[1765994356166,13.048344,2852.8,2852.7,0.002]
[1765994356472,16.95917609,2852.8,2852.6,1e-08]
[1765994356681,0.405504,2852.6,2852.0,0.002]
[1765994356856,18.790366,2852.2,2852.0,0.002]
[1765994357050,4.44468023,2852.1,2852.0,0.002]
[1765994357674,3.56168023,2852.1,2852.0,0.002]
[1765994357870,3.67577023,2852.1,2852.0,0.002]
[1765994358390,1.02538023,2852.1,2852.0,0.002]
[1765994358686,30.65302265,2852.1,2852.0,0.002]
[1765994358855,33.71832492,2852.1,2852.0,0.002]
[1765994359673,9.0459925,2852.1,2852.0,0.002]
[1765994359856,9.48687865,2852.1,2852.0,0.002]
[1765994360351,5.29038223,2852.1,2852.0,0.002]
[1765994361065,8.79657065,2852.1,2852.0,0.002]
[1765994361743,5.29038223,2852.1,2852.0,0.002]
[1765994361948,8.79657065,2852.1,2852.0,0.002]
[1765994362152,9.67622772,2852.1,2852.0,0.002]
[1765994362945,6.1700393,2852.1,2852.0,0.002]
[1765994363149,9.67622772,2852.1,2852.0,0.002]
[1765994364579,35.81672972,2852.1,2852.0,0.002]
[1765994364760,25.93188972,2852.1,2852.0,0.002]
[1765994365162,0.46438023,2851.5,2851.0,0.002]
[1765994365396,10.179086,2851.3,2851.0,0.002]
[1765994365750,0.561,2851.4,2851.0,0.002]
[1765994365952,0.46438023,2851.2,2851.0,0.002]
[1765994367158,0.46438023,2851.2,2850.6,0.002]
[1765994367159,0.405504,2851.0,2850.6,0.002]
[1765994367375,0.561,2850.9,2850.6,0.002]
[1765994369070,0.46438023,2850.8,2850.6,0.002]
[1765994369389,0.45330723,2850.7,2850.6,0.002]
[1765994369745,0.561,2850.9,2850.6,0.002]
[1765994371661,0.46438023,2850.8,2850.6,0.002]
[1765994371874,1.02538023,2850.9,2850.6,0.002]
[1765994372075,9.07863568,2851.8,2850.6,0.002]
[1765994372282,30.0,2851.7,2851.0,2.249]
[1765994372491,0.561,2851.8,2851.1,0.03507418]
[1765994372667,0.561,2851.8,2850.9,0.01748588]
[1765994373056,0.561,2851.8,2851.0,7.01508242]
[1765994373380,0.561,2851.8,2851.0,3.50754121]
[1765994373683,4.06756324,2851.8,2851.0,0.70326622]
[1765994373860,0.561,2851.8,2851.0,0.70326622]
[1765994374286,1.02538023,2851.8,2851.0,0.70326622]
[1765994374872,4.53202287,2851.8,2850.7,0.01748588]
[1765994375178,8.03866551,2851.8,2850.7,3.52529655]
[1765994375379,1.02538023,2851.8,2850.7,3.50781067]
[1765994375685,9.322189,2851.3,2850.6,0.002]
[1765994375884,13.29021431,2851.8,2850.6,0.002]
[1765994375885,0.561,2851.2,2850.6,0.35322191]
[1765994376583,0.561,2851.2,2850.6,0.002]
[1765994376973,4.06831638,2851.2,2850.6,0.002]
[1765994378391,0.561,2851.1,2850.6,0.002]
[1765994379087,0.46438023,2851.4,2850.8,2.1626]
[1765994379255,0.561,2851.7,2850.9,0.01748588]
[1765994379461,0.561,2851.7,2851.0,0.44290859]
[1765994380268,0.561,2851.9,2851.1,0.01748588]
[1765994381165,1.02538023,2851.9,2851.1,3.5248085]
[1765994381366,4.06750191,2851.9,2850.9,3.50760204]
[1765994381663,4.06750191,2851.9,2851.0,3.50750586]
[1765994381664,0.46438023,2851.8,2851.0,3.50750586]
[1765994381861,0.46438023,2851.8,2851.0,0.70152791]
[1765994382057,0.46438023,2851.8,2851.0,3.50748497]
[1765994382267,0.46438023,2851.8,2851.0,3.50748598]
[1765994382489,0.46438023,2851.8,2850.7,0.01748588]
[1765994382891,0.46438023,2851.8,2850.9,3.50761329]
[1765994383075,0.46438023,2851.8,2850.7,0.01748588]
[1765994383390,0.001,2852.1,2850.9,0.01748588]
[1765994383587,0.561,2851.8,2850.9,2.24148588]
[1765994383768,0.561,2851.8,2850.8,0.43845859]
[1765994385264,0.001,2852.1,2851.1,2.24148588]
[1765994385570,1.02538023,2852.0,2851.2,0.22414859]
[1765994385770,1.02538023,2852.0,2850.9,9.17391436]
[1765994385994,0.561,2852.0,2850.9,9.17391436]
[1765994386588,1.02538023,2852.0,2850.9,7.03281436]
[1765994386778,1.02538023,2852.0,2850.9,3.52515012]
[1765994386979,1.02538023,2852.0,2850.9,7.03281436]
[1765994387281,0.91763748,2851.9,2851.1,3.50741818]
[1765994387586,0.001,2851.8,2851.1,7.01483636]
[1765994387990,0.562,2851.8,2851.1,7.01483636]
[1765994388688,0.562,2851.8,2851.0,4.31070249]
[1765994388689,1.02638023,2851.8,2851.0,4.31070249]
[1765994388890,0.562,2851.8,2851.0,7.8182437]
[1765994389208,0.562,2851.8,2851.0,4.31070249]
[1765994389689,0.46438023,2851.7,2850.8,0.43845859]
[1765994389893,0.46438023,2851.7,2850.7,3.50785666]
[1765994390189,0.45427484,2851.8,2851.0,7.01504942]
[1765994390394,0.562,2851.8,2851.0,7.01504942]
[1765994390693,0.001,2851.8,2851.0,11.38014942]
[1765994390985,0.001,2851.8,2851.0,11.3976353]
[1765994391388,0.001,2851.8,2851.0,7.0325353]
[1765994391689,0.001,2851.8,2850.8,0.01748588]
[1765994391893,0.75749144,2851.7,2850.6,0.01948588]
[1765994392073,0.405504,2851.6,2850.6,0.002]
[1765994392393,0.86988423,2851.6,2850.6,0.002]
[1765994392595,0.46438023,2851.2,2850.6,0.002]
[1765994392766,0.561,2851.1,2850.6,0.002]
[1765994392962,0.561,2851.0,2850.6,0.002]
[1765994393380,1.02538023,2851.0,2850.6,0.002]
[1765994393591,0.45328341,2850.9,2850.6,0.002]
[1765994394068,1.02538023,2851.0,2850.6,0.002]
[1765994394573,0.561,2851.0,2850.6,0.002]
[1765994395089,0.75749144,2851.7,2850.6,0.002]
[1765994395295,0.46438023,2851.5,2850.9,2.224]
[1765994395464,3.50757168,2851.8,2850.6,0.01948588]
[1765994395665,0.001,2851.6,2850.8,0.01748588]
[1765994397090,3.089657,2851.5,2850.6,0.002]
[1765994397292,0.8700657,2851.4,2850.6,3.51003339]
[1765994397464,0.46438023,2851.3,2850.6,0.002]
[1765994398369,0.8700657,2851.4,2850.6,0.002]
[1765994398562,0.46438023,2851.3,2850.6,0.002]
[1765994399591,0.561,2851.2,2850.6,0.002]
[1765994399891,0.46438023,2851.5,2850.6,0.002]
[1765994400092,0.001,2851.6,2850.7,0.01748588]
[1765994400293,0.001,2851.6,2851.2,2.224]
[1765994400469,0.001,2851.6,2851.3,2.44814859]
[1765994400868,0.001,2852.1,2851.7,4.3651]
[1765994401098,0.001,2852.1,2851.3,4.58924859]
[1765994401595,0.001,2852.1,2851.4,3.50704916]
[1765994401764,0.002,2852.1,2851.4,3.50704916]
[1765994402093,0.002,2852.1,2851.6,0.01748588]
[1765994402292,0.001,2852.0,2851.6,0.01748588]
[1765994402496,0.001,2852.1,2851.9,2.224]
[1765994402698,0.001,2852.1,2852.0,0.03506311]
[1765994402897,0.002,2853.0,2851.8,2.1411]
[1765994402898,0.003,2852.8,2851.8,2.1411]
[1765994403098,3.50832809,2852.8,2851.9,0.51009588]
[1765994403315,0.001,2852.8,2852.1,2.224]
[1765994403560,0.001,2853.3,2852.9,2.224]
[1765994403808,0.001,2854.5,2853.0,0.59605082]
[1765994404009,0.001,2854.5,2853.5,4.3651]
[1765994404213,0.001,2854.5,2853.6,4.80161]
[1765994404539,0.001,2854.5,2853.4,0.01448588]
[1765994405028,0.001,2854.5,2853.6,0.405504]
[1765994405176,0.001,2854.7,2853.6,0.405504]
[1765994405177,0.001,2854.7,2853.7,0.46438023]
[1765994405384,0.001,2855.1,2853.8,0.405504]
[1765994405625,0.001,2855.1,2853.5,0.561]
[1765994405626,0.001,2855.1,2854.2,0.405504]
[1765994405916,0.001,2855.1,2854.6,0.01748588]
[1765994406084,0.001,2855.1,2854.2,0.01748588]
[1765994406493,0.001,2855.1,2854.3,2.224]
[1765994406709,0.001,2855.1,2854.5,2.224]
[1765994407002,0.001,2855.7,2855.4,2.224]
[1765994407211,0.001,2855.7,2854.9,2.15858588]
[1765994407421,0.001,2855.7,2855.1,0.01748588]
[1765994407627,0.001,2855.7,2855.1,0.01648588]
[1765994407628,0.003,2855.6,2855.1,0.01648588]
[1765994407790,0.001,2855.6,2855.1,0.01648588]
[1765994407987,0.001,2855.6,2855.2,4.3651]
[1765994408186,0.001,2855.6,2855.3,0.01748588]
[1765994408389,0.001,2855.6,2854.9,0.01748588]
[1765994408810,0.001,2855.6,2855.1,5.66108133]
[1765994409010,0.001,2855.6,2855.1,0.01748588]
[1765994409424,0.001,2855.6,2854.9,0.01748588]
[1765994409624,0.001,2855.6,2855.1,0.01748588]
[1765994409922,0.001,2855.6,2854.9,0.01748588]
[1765994410092,0.75666343,2855.5,2854.6,0.01748588]
[1765994410293,17.073215,2855.1,2853.6,2.0562]
[1765994410507,0.46438023,2854.7,2853.7,0.01748588]
[1765994410705,0.46438023,2854.6,2853.7,0.01748588]
[1765994411198,0.561,2854.5,2853.7,0.01748588]
[1765994411692,0.46438023,2854.3,2853.7,0.01748588]
[1765994411910,0.405504,2854.9,2853.9,0.01748588]
[1765994412088,0.46438023,2855.3,2854.3,0.01748588]
[1765994412514,0.561,2855.2,2854.3,0.01748588]
[1765994412903,4.25868466,2855.5,2854.5,0.01748588]
[1765994413191,0.561,2855.2,2854.7,0.01748588]
[1765994413391,0.561,2855.2,2854.5,0.01748588]
[1765994413612,0.46438023,2855.0,2854.5,0.01748588]
[1765994413803,0.561,2855.2,2854.5,0.01748588]
[1765994414021,0.561,2855.2,2854.2,0.01748588]
[1765994414022,7.842064,2855.0,2854.2,0.01748588]
[1765994414195,0.83064442,2854.9,2853.9,0.01748588]
[1765994414394,0.46438023,2854.8,2853.9,0.01748588]
[1765994414630,0.46438023,2854.8,2854.3,3.52089255]
[1765994414842,0.561,2855.0,2854.5,0.01748588]
[1765994415046,3.96662143,2855.4,2854.7,0.01748588]
[1765994415047,0.561,2855.2,2854.7,0.01748588]
[1765994415744,0.46438023,2855.1,2854.7,0.01748588]
[1765994415944,0.561,2855.2,2854.7,0.01748588]
[1765994416150,0.001,2855.6,2855.1,0.01748588]
[1765994416814,0.46438023,2855.5,2855.0,0.01748588]
[1765994417012,0.001,2855.6,2855.2,0.01748588]
[1765994418352,3.50252316,2855.9,2855.5,2.171]
[1765994418353,0.001,2855.9,2855.5,2.171]
[1765994418620,3.49962312,2857.5,2855.4,0.01748588]
[1765994418621,0.001,2856.9,2855.8,2.3113]
[1765994418785,0.561,2856.7,2855.8,2.3113]
[1765994419567,3.50076488,2856.6,2856.1,0.01748588]
[1765994419730,7.00108516,2856.7,2856.1,0.01748588]
[1765994419926,0.46438023,2856.6,2855.7,0.01748588]
[1765994420131,0.46438023,2856.6,2855.4,2.88978588]
[1765994420132,7.00108516,2856.7,2855.4,0.01748588]
[1765994420440,0.46438023,2856.6,2855.7,0.01748588]
[1765994420641,3.50144925,2856.8,2855.9,0.01748588]
[1765994420980,0.46438023,2856.7,2855.9,0.01748588]
[1765994421181,0.001,2856.8,2856.2,0.01748588]
[1765994421484,0.46438023,2856.7,2856.2,0.01748588]
[1765994421692,0.46438023,2856.5,2855.7,0.01748588]
[1765994421978,0.001,2856.8,2856.0,0.01748588]
[1765994422194,0.46438023,2856.6,2856.0,0.01748588]
[1765994422351,3.96585358,2856.8,2856.0,0.01748588]
[1765994422540,0.001,2856.8,2856.0,0.01748588]
[1765994422753,0.46438023,2856.6,2855.7,2.32878588]
[1765994422958,0.46438023,2856.6,2855.9,0.01748588]
[1765994423157,0.46438023,2856.6,2855.7,0.01748588]
[1765994423353,0.46438023,2856.6,2855.9,0.01748588]
[1765994423775,3.96510307,2856.6,2855.9,0.01748588]
[1765994423964,7.46582591,2856.6,2855.9,0.01748588]
[1765994424275,7.46582591,2856.6,2855.7,0.01748588]
[1765994424276,10.96654875,2856.6,2855.7,0.01748588]
[1765994424569,12.71309094,2856.6,2855.4,0.01748588]
[1765994424773,1.27240909,2856.4,2855.4,0.01748588]
[1765994425001,1.27240909,2856.4,2855.0,2.88978588]
[1765994425002,0.46438023,2856.2,2855.0,0.57848588]
[1765994425164,12.430476,2855.9,2855.0,0.01748588]
[1765994425361,13.359937,2855.7,2854.7,0.01748588]
[1765994425658,0.46438023,2855.8,2854.9,0.01748588]
[1765994425659,5.44533765,2855.6,2854.9,0.01748588]
[1765994425986,8.94724358,2855.6,2854.7,0.01748588]
[1765994426215,5.44533765,2855.6,2855.0,0.002]
[1765994426509,0.46438023,2855.1,2855.0,0.002]
[1765994426682,0.561,2855.1,2855.0,0.002]
[1765994427299,0.46438023,2855.5,2855.0,0.002]
[1765994427603,0.561,2855.4,2855.0,0.002]
[1765994427808,3.50225895,2855.3,2855.0,0.002]
[1765994428001,0.46438023,2855.2,2855.0,0.002]
[1765994428877,3.95014123,2855.1,2855.0,0.002]
[1765994429084,2.94509423,2855.1,2855.0,0.002]
[1765994429305,3.94005544,2855.1,2855.0,0.002]
[1765994429598,1.45934144,2855.1,2855.0,0.002]
[1765994430313,0.46438023,2855.1,2855.0,0.002]
[1765994430806,3.96688452,2855.1,2855.0,0.002]
[1765994431015,0.46438023,2855.1,2855.0,0.002]
[1765994432195,0.561,2855.3,2855.0,0.002]
[1765994433411,0.561,2855.9,2855.1,4.49978588]
[1765994433758,0.561,2855.9,2855.3,0.01748588]
[1765994433915,0.561,2856.0,2855.3,0.01748588]
[1765994434080,0.46438023,2855.9,2855.5,0.01748588]
[1765994434284,1.02538023,2856.0,2855.5,0.01748588]
[1765994434587,0.46438023,2855.9,2855.5,0.01748588]
[1765994434894,0.46438023,2855.9,2855.3,0.01748588]
[1765994435191,0.46438023,2855.9,2855.3,0.51475604]
[1765994435407,0.46438023,2855.7,2855.0,0.002]
[1765994435705,0.561,2855.8,2855.0,0.002]
[1765994435878,1.75267866,2855.7,2855.0,0.002]
[1765994436072,0.46438023,2855.4,2855.0,0.002]
[1765994436385,0.46438023,2855.0,2854.5,1e-08]
[1765994436595,0.561,2855.3,2854.5,1e-08]
[1765994436897,0.561,2855.3,2854.6,0.01748588]
[1765994437081,0.562,2855.2,2854.8,0.01748588]
[1765994437276,0.562,2855.2,2854.6,0.01748588]
[1765994437897,0.46438023,2855.4,2854.6,0.01748588]
[1765994438096,0.46438023,2855.1,2854.5,0.01748589]
[1765994438300,0.46438023,2855.1,2854.5,1e-08]
[1765994438502,0.95863939,2855.3,2854.5,1e-08]
[1765994438503,4.46095521,2855.3,2854.5,1e-08]
[1765994438701,0.46438023,2855.2,2854.5,1e-08]
[1765994439102,0.39663939,2855.3,2854.7,0.01748588]
[1765994439308,0.561,2855.2,2854.7,0.01748588]
[1765994439485,0.561,2855.3,2854.7,0.01748588]
[1765994439691,3.96617651,2855.7,2854.9,0.01748588]
[1765994439891,0.46438023,2855.5,2854.9,0.01748588]
[1765994441246,0.561,2856.3,2855.3,0.01748588]
[1765994441417,1.02538023,2856.3,2855.5,0.01748588]
[1765994441713,1.02538023,2856.3,2855.3,0.01748588]
[1765994441714,0.80282087,2856.2,2855.3,0.01748588]
[1765994441917,0.80282087,2856.2,2855.1,0.01748588]
[1765994442133,0.46438023,2856.0,2855.1,0.01748588]
[1765994442428,0.562,2855.9,2855.3,0.01748588]
[1765994443119,0.562,2855.9,2855.1,0.01748588]
[1765994443321,1.36489362,2855.9,2855.1,0.01748588]
[1765994443622,1.36489362,2855.9,2855.3,0.01748588]
[1765994444524,4.06362003,2855.9,2855.1,0.01748588]
[1765994444731,0.46438023,2855.8,2854.9,0.01748588]
[1765994445016,0.46438023,2855.6,2854.9,0.01748588]
[1765994445217,0.561,2855.5,2854.9,0.01748588]
[1765994446433,3.50194742,2855.6,2855.1,0.01748588]
[1765994446595,0.561,2855.4,2855.1,0.01748588]
[1765994448220,0.001,2855.6,2855.1,0.01748588]
[1765994448425,0.001,2855.6,2855.5,0.01748588]
[1765994448601,0.561,2856.2,2855.5,0.01748588]
[1765994449402,0.46438023,2856.0,2855.1,0.01748588]
[1765994449610,0.66264692,2855.9,2855.1,3.51997983]
[1765994449803,0.561,2855.8,2855.1,0.01748588]
[1765994450197,0.46438023,2855.6,2855.1,0.01748588]
[1765994450420,0.561,2855.8,2855.1,3.51996118]
[1765994451028,3.5010328,2856.3,2855.3,0.01748588]
[1765994451331,3.5010328,2856.3,2855.1,3.51996118]
[1765994451332,0.46438023,2855.7,2855.1,0.01748588]
[1765994451528,0.92581372,2855.6,2854.9,0.01748588]
[1765994451826,0.561,2855.5,2854.7,0.01748588]
[1765994452323,0.561,2855.5,2854.5,1e-08]
[1765994452324,25.45128823,2855.3,2854.5,1e-08]
[1765994452495,5.864396,2855.2,2854.5,1e-08]
[1765994452700,0.86988423,2855.3,2854.5,1e-08]
[1765994452701,0.561,2855.1,2854.5,1e-08]
[1765994453324,0.561,2855.1,2854.5,3.50323548]
[1765994453624,0.561,2855.0,2854.5,1e-08]
[1765994454324,0.46438023,2854.9,2854.5,1e-08]
[1765994454500,0.80306641,2854.8,2854.5,1e-08]
[1765994455627,4.52802929,2855.0,2854.5,1e-08]
[1765994455628,1.02538023,2855.0,2854.5,1e-08]
[1765994456201,0.561,2855.0,2854.5,1e-08]
[1765994456397,1.02538023,2855.0,2854.5,1e-08]
[1765994456627,0.001,2855.2,2854.7,0.01748588]
[1765994456813,0.001,2855.2,2854.8,2.0159]
[1765994456999,0.001,2855.2,2854.9,0.01748588]
[1765994457201,0.46538023,2855.2,2854.7,0.01748588]
[1765994457401,1.21236628,2855.2,2854.7,0.01748588]
[1765994457598,0.001,2855.2,2854.7,0.01748588]
[1765994457802,0.001,2855.2,2854.9,0.01748588]
[1765994458921,0.001,2855.2,2854.9,3.52022554]
[1765994459425,0.001,2855.2,2854.9,0.01748588]
[1765994459932,0.001,2855.2,2854.7,0.01748588]
[1765994460128,0.001,2855.2,2854.9,0.01748588]
[1765994460429,0.561,2855.7,2855.0,2.0159]
[1765994460627,1.01369034,2855.7,2855.1,0.01748588]
[1765994461033,3.9070261,2856.0,2855.1,0.01748588]
[1765994461034,3.50142899,2856.0,2855.3,0.01748588]
[1765994461226,3.50142899,2856.0,2855.1,3.51995508]
[1765994461227,0.001,2855.5,2855.4,0.01648588]
[1765994461403,0.561,2856.0,2855.4,4.39218588]
[1765994461603,0.561,2856.0,2855.1,7.0224924]
[1765994461604,0.561,2856.0,2855.2,0.01748588]
[1765994462014,1.02538023,2856.0,2855.2,0.01748588]
[1765994462236,1.82816591,2856.0,2855.2,0.01748588]
[1765994462836,0.405504,2855.4,2854.1,0.01748588]
[1765994463012,0.46438023,2855.2,2854.1,0.01748588]
[1765994463212,0.86988423,2855.2,2854.1,0.01748588]
[1765994463520,0.84354021,2855.1,2854.1,3.5211903]
[1765994464101,0.84354021,2855.1,2854.1,0.01748588]
[1765994464931,0.84354021,2855.1,2854.1,3.52120413]
[1765994465134,2.14646854,2855.0,2853.9,0.002]
[1765994465335,0.46438023,2853.9,2853.4,1e-08]
[1765994465557,0.46438023,2853.7,2853.4,1e-08]
[1765994465844,0.562,2853.7,2853.4,1e-08]
[1765994466705,0.405504,2853.6,2853.4,1e-08]
[1765994466914,0.562,2853.7,2853.4,1e-08]
[1765994467139,0.46438023,2853.6,2853.4,1e-08]
[1765994467436,0.80237303,2853.5,2853.4,1e-08]
[1765994467642,3.50348596,2854.3,2853.4,1e-08]
[1765994467846,0.86988423,2853.9,2853.4,1e-08]
[1765994468448,0.405504,2853.9,2853.4,1e-08]
[1765994468610,0.46438023,2854.0,2853.4,1e-08]
[1765994468812,5.1,2854.5,2853.4,1e-08]
[1765994469043,1.59473502,2854.4,2853.6,3.50434538]
[1765994469336,9.48368463,2855.2,2853.7,1.99838588]
[1765994469509,23.371168,2855.0,2853.7,1.99838588]
[1765994469709,0.405504,2854.8,2853.4,1e-08]
[1765994470015,4.236,2854.1,2853.4,1e-08]
[1765994470226,1.02638023,2854.0,2853.4,1e-08]
[1765994470842,0.562,2854.0,2853.4,1e-08]
[1765994471433,0.46438023,2853.9,2853.4,1e-08]
[1765994471659,1.78885403,2855.4,2853.4,1e-08]
[1765994471806,3.959124,2854.8,2853.5,0.01748588]
[1765994472149,0.46438023,2854.5,2853.7,0.01748588]
[1765994472320,0.405504,2854.6,2853.7,0.21752306]
[1765994472512,7.0045179,2855.3,2854.0,0.01748588]
[1765994472715,2.63615,2855.2,2854.1,0.01748588]
[1765994472926,0.563,2855.2,2854.1,0.01748588]
[1765994473118,0.40652589,2855.1,2854.2,7.00721742]
[1765994473340,0.87090612,2855.1,2854.2,3.50360871]
[1765994473540,0.87090612,2855.1,2854.1,0.44966306]
[1765994473745,0.87090612,2855.1,2854.0,1.9654]
[1765994473918,0.46438023,2854.9,2853.7,0.21752306]
[1765994474119,0.405504,2854.6,2853.4,1e-08]
[1765994474345,0.86988423,2854.2,2853.4,1e-08]
[1765994474527,0.563,2854.1,2853.5,0.01748588]
[1765994474723,0.563,2854.1,2853.4,1e-08]
[1765994475251,0.001,2854.0,2853.4,1e-08]
[1765994475451,0.46538023,2854.0,2853.4,1e-08]
[1765994475654,0.45321117,2853.9,2853.4,1e-08]
[1765994476353,0.86988423,2853.6,2853.4,1e-08]
[1765994476555,15.69746454,2853.5,2853.4,1e-08]
[1765994476861,0.46438023,2853.5,2853.4,1e-08]
[1765994477426,0.001,2854.0,2853.4,1e-08]
[1765994477667,0.001,2854.0,2853.6,1.9654]
[1765994478588,0.001,2854.0,2853.7,1.98288588]
[1765994478744,6.79652589,2855.1,2853.9,1.98288588]
[1765994478745,0.563,2854.8,2853.9,1.98288588]
[1765994479049,3.90906427,2855.1,2854.2,8.97261742]
[1765994479050,0.96952589,2855.1,2854.2,8.97261742]
[1765994479352,0.563,2855.1,2854.2,8.97261742]
[1765994479551,0.001,2855.2,2854.4,4.2868]
[1765994479862,0.001,2855.2,2854.2,7.00721742]
[1765994479863,0.001,2855.2,2854.3,0.405504]
[1765994480665,0.001,2855.2,2854.5,4.2868]
[1765994480823,0.001,2855.2,2854.9,0.01748588]
[1765994481222,0.001,2855.2,2854.7,4.30428588]
[1765994481423,0.001,2855.2,2854.9,0.01748588]
[1765994481825,0.001,2855.2,2854.9,3.52012087]
[1765994482025,0.001,2855.2,2854.9,1.98288588]
[1765994482225,0.001,2855.2,2854.9,2.41506306]
[1765994482824,0.001,2855.5,2855.1,0.01748588]
[1765994483029,0.001,2856.3,2855.3,2.33888588]
[1765994483230,0.001,2856.0,2855.7,1.9654]
[1765994483558,0.001,2856.0,2855.8,4.2868]
[1765994483855,0.001,2856.0,2855.4,7.78888165]
[1765994484056,0.001,2856.0,2855.9,0.01748588]
[1765994484234,0.001,2856.3,2856.0,2.3214]
[1765994484438,0.001,2856.8,2856.1,2.3214]
[1765994484636,0.564,2857.5,2856.4,2.3214]
[1765994484836,0.564,2857.5,2856.5,4.2868]
[1765994485353,0.46438023,2857.4,2856.4,2.3214]
[1765994485762,11.06272185,2857.5,2856.2,0.01748588]
[1765994485948,0.405504,2857.4,2856.4,0.01748588]
[1765994486153,0.86988423,2857.4,2856.4,0.01748588]
[1765994486355,0.563,2857.0,2856.4,0.01748588]
[1765994487070,3.105749,2856.9,2856.2,0.01748588]
[1765994487237,7.00108516,2856.7,2855.9,0.01748588]
[1765994487448,3.86729689,2856.8,2856.3,0.01748588]
[1765994487740,7.36771888,2856.8,2856.1,0.01748588]
[1765994488264,7.36771888,2856.8,2856.3,0.01748588]
[1765994488468,3.86729689,2856.8,2856.3,0.01748588]
[1765994488761,0.73676245,2856.7,2856.3,0.01748588]
[1765994488948,0.46538023,2857.1,2856.6,0.01748588]
[1765994488949,0.001,2857.1,2856.6,0.01748588]
[1765994489666,0.001,2857.1,2856.3,0.01748588]
[1765994489848,0.001,2857.1,2856.5,0.01748588]
[1765994490055,0.001,2857.1,2856.7,0.01748588]
[1765994490578,0.001,2857.1,2856.5,0.01748588]
[1765994490774,0.001,2857.1,2856.3,0.01748588]
[1765994491084,0.001,2857.1,2856.5,0.01748588]
[1765994491390,0.69728652,2857.1,2856.7,0.01748588]
[1765994491562,0.001,2857.1,2856.7,0.01748588]
[1765994491946,0.001,2857.1,2856.9,0.01748588]
[1765994492885,0.001,2857.1,2856.7,0.01748588]
[1765994493191,7.00112287,2857.1,2856.5,0.01748588]
[1765994493360,0.001,2857.1,2856.5,0.01748588]
[1765994493752,2.023198,2856.9,2856.1,0.01748588]
[1765994493957,0.72300003,2856.9,2856.4,0.01748588]
[1765994494275,0.46438023,2856.9,2856.1,0.01748588]
[1765994494475,0.46438023,2856.9,2856.3,0.01748588]